Workbook

Sheet Feuil2
H2: HICHAM | K2: LEILA | N2: MOHAMMED | Q2: ABEDERRAHIM | T2: YOUSSOUFIA | W2: CASABLANCA | Z2: BRAHIM | AC2: OUARZAZATE
AF4: MIN | AG4: NOM
B8: Code | C8: Description | D8: Remarques sur l’article | E8: Unité | F8: Qté
B9: F1 | F9: 6 | G9: C | H9: 5000 | I9: =IF(G9="c",F9*H9,"") -> 30000 | J9: D | K9: 0 | L9: =IF(J9="c",F9*K9,"") ->  | M9: N.C, propose longueur de 5,8 ML au lieu de 12 M + matière | N9: 1000 | O9: =IF(M9="c",F9*N9,"") ->  | P9: C | Q9: 912.84 | R9: =IF(P9="c",F9*Q9,"") -> 5477.04 | S9: D | T9: 0 | U9: =IF(S9="c",F9*T9,"") ->  | V9: N.C, propose longueur de 6 M au lieu de 12 M + matière | W9: 1450 | X9: =IF(V9="c",F9*W9,"") ->  | Y9: D | Z9: 0 | AA9: =IF(Y9="c",F9*Z9,"") ->  | AB9: C | AC9: 2725 | AD9: =IF(AB9="c",F9*AC9,"") -> 16350 | AF9: =MIN(I9,L9,O9,R9,U9,X9,AA9,AD9) -> 5477.04 | AG9: ABEDERRAHIM
B10: F2 | F10: 6 | G10: C | H10: 15000 | I10: =IF(G10="c",F10*H10,"") -> 90000 | J10: C | K10: 13500 | L10: =IF(J10="c",F10*K10,"") -> 81000 | M10: N.C, propose longueur de 4,7 ML au lieu de 6M | N10: 1900 | O10: =IF(M10="c",F10*N10,"") ->  | P10: C | Q10: 847.8 | R10: =IF(P10="c",F10*Q10,"") -> 5086.8 | S10: C | T10: 1188 | U10: =IF(S10="c",F10*T10,"") -> 7128 | V10: D | W10: 0 | X10: =IF(V10="c",F10*W10,"") ->  | Y10: D | Z10: 0 | AA10: =IF(Y10="c",F10*Z10,"") ->  | AB10: C | AC10: 2026 | AD10: =IF(AB10="c",F10*AC10,"") -> 12156 | AF10: =MIN(I10,L10,O10,R10,U10,X10,AA10,AD10) -> 5086.8 | AG10: ABEDERRAHIM
B11: F3 | F11: 2 | G11: C | H11: 250.7 | I11: 501.4 | J11: C | K11: 90 | L11: 180 | M11: C | N11: 164 | O11: 328 | P11: C | Q11: 9.42 | R11: 18.84 | S11: D | T11: 0 | V11: D | W11: 0 | Y11: N.C, propose matière A 105 | Z11: 41.47 | AA11: 18.84 | AB11: D | AC11: 336 | AF11: 18.84 | AG11: ABEDERRAHIM;BRAHIM
B12: F4 | F12: 2 | G12: C | H12: 425.5 | I12: 851 | J12: C | K12: 305 | L12: 610 | M12: C | N12: 300 | O12: 600 | P12: C | Q12: 41.46 | R12: 82.92 | S12: C | T12: 332 | U12: 664 | V12: C | W12: 350 | Y12: C | Z12: 393.25 | AA12: 786.5 | AB12: C | AC12: 336 | AD12: 672 | AF12: 82.92 | AG12: ABEDERRAHIM
B13: F5 | F13: 3 | G13: C | H13: 862.5 | I13: 2587.5 | J13: C | K13: 2310 | L13: 6930 | M13: C | N13: 1464 | O13: 4392 | P13: C | Q13: 440.88 | R13: 1322.64 | S13: C | T13: 1078 | U13: 3234 | V13: D | W13: 0 | Y13: D | Z13: 0 | AB13: C | AC13: 362 | AD13: 1086 | AF13: 1086 | AG13: OUARZAZATE
B14: F6 | F14: 9 | G14: C | H14: 545.5 | I14: 4909.5 | J14: C | K14: 370 | L14: 3330 | M14: C | N14: 310 | O14: 2790 | P14: C | S14: C | T14: 332 | U14: 2988 | V14: C | W14: 230 | Y14: C | Z14: 250.25 | AA14: 2252.25 | AB14: C | AC14: 362 | AD14: 3258 | AF14: 2252.25 | AG14: BRAHIM
B15: F7 | F15: 34 | G15: C | H15: 560 | I15: 19040 | J15: D | K15: 0 | M15: C | N15: 1799 | O15: 61166 | P15: C | Q15: 3136.5 | R15: 106641 | S15: D | T15: 0 | V15: C | W15: 440 | Y15: D | Z15: 0 | AB15: C | AC15: 334 | AD15: 11356 | AF15: 11356 | AG15: OUARZAZATE
B16: F8 | F16: 48 | G16: C | H16: 320 | I16: 15360 | J16: D | K16: 0 | M16: C | N16: 205 | O16: 9840 | P16: C | Q16: 235.2 | R16: 11289.6 | S16: D | T16: 0 | V16: C | W16: 88 | Y16: D | Z16: 0 | AB16: C | AC16: 60 | AD16: 2880 | AF16: 2880 | AG16: OUARZAZATE
B17: F9 | F17: 16 | G17: C | H17: 230 | I17: 3680 | J17: C | K17: 140 | L17: 2240 | M17: C | N17: 90 | O17: 1440 | P17: C | Q17: 68 | R17: 1088 | S17: D | T17: 0 | V17: N.C, propose matière 316 L au lieu de 304 L | W17: 132 | Y17: N.C, propose matière 316 L au lieu de 304 L | Z17: 150.15 | AB17: C | AC17: 120 | AD17: 1920 | AF17: 1088 | AG17: ABEDERRAHIM
B18: F10 | F18: 18 | G18: C | H18: 250 | I18: 4500 | J18: C | K18: 114 | L18: 2052 | M18: C | N18: 233 | O18: 4194 | P18: C | Q18: 95.4 | R18: 1717.2 | S18: D | T18: 0 | V18: D | W18: 0 | Y18: N.C, propose matière A 105 | Z18: 48.62 | AB18: D | AC18: 1181 | AF18: 1717.2 | AG18: ABEDERRAHIM
B19: F11 | F19: 1 | G19: C | H19: 2200 | I19: 2200 | J19: C | K19: 900 | L19: 900 | M19: C | N19: 700 | O19: 700 | P19: C | Q19: 75.36 | R19: 75.36 | S19: C | T19: 1194 | U19: 1194 | V19: C | W19: 1080 | Y19: C | Z19: 1229.8 | AA19: 1229.8 | AB19: C | AC19: 1181 | AD19: 1181 | AF19: 75.36 | AG19: ABEDERRAHIM
B20: F12 | F20: 2 | G20: C | H20: 390 | I20: 780 | J20: D | K20: 0 | M20: C | N20: 432 | O20: 864 | P20: C | Q20: 24.5 | R20: 49 | S20: C | T20: 746 | U20: 1492 | V20: D | W20: 0 | Y20: D | Z20: 0 | AB20: C | AC20: 445 | AD20: 890 | AF20: 49 | AG20: ABEDERRAHIM
B21: F13 | F21: 4 | G21: C | H21: 4200 | I21: 16800 | J21: C | K21: 2990 | L21: 11960 | M21: C | N21: 1464 | O21: 5856 | P21: C | Q21: 587.84 | R21: 2351.36 | S21: C | T21: 1078 | U21: 4312 | V21: D | W21: 0 | Y21: D | Z21: 0 | AB21: C | AC21: 1145 | AD21: 4580 | AF21: 2351.36 | AG21: ABEDERRAHIM
B22: F14 | F22: 36 | G22: C | H22: 150 | I22: 5400 | J22: D | K22: 0 | M22: C | N22: 26 | O22: 936 | P22: C | Q22: 169.56 | R22: 6104.16 | S22: D | T22: 0 | V22: C | W22: 36 | Y22: D | Z22: 0 | AB22: C | AC22: 64 | AD22: 2304 | AF22: 936 | AG22: MOHAMMED
B23: F15 | F23: 48 | G23: C | H23: 180 | I23: 8640 | J23: D | K23: 0 | M23: C | N23: 38 | O23: 1824 | P23: C | Q23: 268.8 | R23: 12902.4 | S23: D | T23: 0 | V23: C | W23: 49 | Y23: D | Z23: 0 | AB23: C | AC23: 94 | AD23: 4512 | AF23: 1824 | AG23: MOHAMMED
B24: F16 | F24: 72 | G24: C | H24: 350 | I24: 25200 | J24: D | K24: 0 | M24: C | N24: 55 | O24: 3960 | P24: C | Q24: 392.4 | R24: 28252.8 | S24: D | T24: 0 | V24: C | W24: 74 | Y24: D | Z24: 0 | AB24: C | AC24: 116 | AD24: 8352 | AF24: 3960 | AG24: MOHAMMED
B25: F17 | F25: 270 | G25: C | H25: 640 | I25: 172800 | J25: D | K25: 0 | M25: C | N25: 80 | O25: 21600 | P25: C | Q25: 2613.6 | R25: 705672 | S25: C | T25: 0 | U25: 0 | V25: C | W25: 100 | Y25: D | Z25: 0 | AB25: C | AC25: 195 | AD25: 52650 | AF25: 0 | AG25: YOUSSOUFIA
B26: F18 | F26: 48 | G26: C | H26: 1200 | I26: 57600 | J26: D | K26: 0 | M26: C | N26: 320 | O26: 15360 | P26: C | Q26: 1316.16 | R26: 63175.68 | S26: D | T26: 0 | V26: C | W26: 301 | Y26: D | Z26: 0 | AB26: C | AC26: 674 | AD26: 32352 | AF26: 15360 | AG26: MOHAMMED
B27: F19 | F27: 12 | G27: C | H27: 8500 | I27: 102000 | J27: D | K27: 0 | M27: C | N27: 43 | O27: 516 | P27: C | Q27: 15 | R27: 180 | S27: D | T27: 0 | V27: D | W27: 0 | Y27: D | Z27: 0 | AB27: C | AC27: 99 | AD27: 1188 | AF27: 180 | AG27: ABEDERRAHIM
B28: F20 | F28: 15 | G28: C | H28: 505 | I28: 7575 | J28: D | K28: 0 | M28: C | N28: 40 | O28: 600 | P28: C | Q28: 30 | R28: 450 | S28: D | T28: 0 | V28: D | W28: 0 | Y28: C | Z28: 48.62 | AA28: 729.3 | AB28: C | AC28: 126 | AD28: 1890 | AF28: 450 | AG28: ABEDERRAHIM
B29: F21 | F29: 15 | G29: C | H29: 675.75 | I29: 10136.25 | J29: D | K29: 0 | M29: C | N29: 20 | O29: 300 | P29: C | Q29: 62.25 | R29: 933.75 | S29: D | T29: 0 | V29: C | W29: 26 | Y29: D | Z29: 0 | AB29: C | AC29: 28 | AD29: 420 | AF29: 300 | AG29: MOHAMMED
B30: F22 | F30: 30 | G30: C | H30: 560 | I30: 16800 | J30: D | K30: 0 | M30: C | N30: 25 | O30: 750 | P30: C | Q30: 94.5 | R30: 2835 | S30: D | T30: 0 | V30: C | W30: 30 | Y30: D | Z30: 0 | AB30: C | AC30: 31 | AD30: 930 | AF30: 750 | AG30: MOHAMMED
B31: F23 | F31: 8 | G31: C | H31: 1500 | I31: 12000 | J31: D | K31: 0 | M31: C | N31: 618 | O31: 4944 | P31: C | Q31: 256.24 | R31: 2049.92 | S31: D | T31: 0 | V31: D | W31: 0 | Y31: C | Z31: 536.25 | AA31: 4290 | AB31: C | AC31: 166 | AD31: 1328 | AF31: 1328 | AG31: OUARZAZATE
B32: F24 | F32: 7 | G32: C | H32: 520 | I32: 3640 | J32: D | K32: 0 | M32: C | N32: 275 | O32: 1925 | P32: C | Q32: 23.8 | R32: 166.6 | S32: D | T32: 0 | V32: D | W32: 0 | Y32: N.C, propose matière A234 au lieu de A420 | Z32: 41.47 | AB32: C | AC32: 24 | AD32: 168 | AF32: 166.6 | AG32: ABEDERRAHIM
B33: F25 | F33: 15 | G33: C | H33: 680 | I33: 10200 | J33: D | K33: 0 | M33: N.C, propose extrémité BW au lieu de SW | N33: 81 | P33: C | Q33: 31.5 | R33: 472.5 | S33: D | T33: 0 | V33: C | W33: 23 | Y33: C | Z33: 48.62 | AA33: 729.3 | AB33: C | AC33: 60 | AD33: 900 | AF33: 472.5 | AG33: ABEDERRAHIM
B34: F26 | F34: 18 | G34: C | H34: 950 | I34: 17100 | J34: D | K34: 0 | M34: N.C, propose extrémité BW au lieu de SW | N34: 20 | P34: C | Q34: 74.7 | R34: 1344.6 | S34: D | T34: 0 | V34: C | W34: 40 | Y34: D | Z34: 0 | AB34: C | AC34: 91 | AD34: 1638 | AF34: 1344.6 | AG34: ABEDERRAHIM
B35: F27 | F35: 15 | G35: C | H35: 1530 | I35: 22950 | J35: D | K35: 0 | M35: N.C, propose extrémité BW au lieu de SW | N35: 25 | P35: C | Q35: 107.4 | R35: 1611 | S35: D | T35: 0 | V35: C | W35: 64 | Y35: C | Z35: 41.47 | AA35: 622.05 | AB35: C | AC35: 114 | AD35: 1710 | AF35: 622.05 | AG35: BRAHIM
B36: F28 | F36: 15 | G36: C | H36: 1860 | I36: 27900 | J36: D | K36: 0 | M36: C | N36: 200 | O36: 3000 | P36: C | Q36: 116.25 | R36: 1743.75 | S36: D | T36: 0 | V36: C | W36: 70 | Y36: D | Z36: 0 | AB36: C | AC36: 122 | AD36: 1830 | AF36: 1743.75 | AG36: ABEDERRAHIM
B37: F29 | F37: 6 | G37: C | H37: 2500 | I37: 15000 | J37: D | K37: 0 | M37: C | N37: 312 | O37: 1872 | P37: C | Q37: 99.48 | R37: 596.88 | S37: D | T37: 0 | V37: C | W37: 162 | Y37: C | Z37: 183.04 | AA37: 1098.24 | AB37: C | AC37: 154 | AD37: 924 | AF37: 596.88 | AG37: ABEDERRAHIM
B38: F30 | F38: 2 | G38: C | H38: 2840 | I38: 5680 | J38: D | K38: 0 | M38: C | N38: 458 | O38: 916 | P38: C | Q38: 24.12 | R38: 48.24 | S38: D | T38: 0 | V38: C | W38: 120 | Y38: C | Z38: 80.08 | AA38: 160.16 | AB38: C | AC38: 83 | AD38: 166 | AF38: 48.24 | AG38: ABEDERRAHIM
B39: F31 | F39: 15 | G39: C | H39: 5400 | I39: 81000 | J39: D | K39: 0 | M39: D | N39: 0 | P39: C | Q39: 675 | R39: 10125 | S39: D | T39: 0 | V39: D | W39: 0 | Y39: D | Z39: 0 | AB39: C | AC39: 119 | AD39: 1785 | AF39: 1785 | AG39: OUARZAZATE
B40: F32 | F40: 8 | G40: C | H40: 8500 | I40: 68000 | J40: D | K40: 0 | M40: D | N40: 0 | P40: C | Q40: 0 | R40: 0 | S40: D | T40: 0 | V40: D | W40: 0 | Y40: D | Z40: 0 | AB40: C | AC40: 126 | AD40: 1008 | AF40: 0 | AG40: ABEDERRAHIM
B41: F33 | F41: 12 | G41: C | H41: 1850 | I41: 22200 | J41: D | K41: 0 | M41: D | N41: 0 | P41: C | Q41: 300 | R41: 3600 | S41: D | T41: 0 | V41: D | W41: 0 | Y41: D | Z41: 0 | AB41: C | AC41: 130 | AD41: 1560 | AF41: 1560 | AG41: OUARZAZATE
B42: F34 | F42: 8 | G42: C | H42: 4350 | I42: 34800 | J42: D | K42: 0 | M42: D | N42: 0 | P42: C | Q42: 0 | R42: 0 | S42: D | T42: 0 | V42: D | W42: 0 | Y42: D | Z42: 0 | AB42: C | AC42: 138 | AD42: 1104 | AF42: 0 | AG42: ABEDERRAHIM
B43: F35 | F43: 10 | G43: C | H43: 685 | I43: 6850 | J43: D | K43: 0 | M43: D | N43: 0 | P43: C | Q43: 350 | R43: 3500 | S43: D | T43: 0 | V43: D | W43: 0 | Y43: D | Z43: 0 | AB43: C | AC43: 146 | AD43: 1460 | AF43: 1460 | AG43: OUARZAZATE
B44: F36 | F44: 5 | G44: C | H44: 1850 | I44: 9250 | J44: D | K44: 0 | M44: D | N44: 0 | P44: C | Q44: 0 | R44: 0 | S44: D | T44: 0 | V44: D | W44: 0 | Y44: D | Z44: 0 | AB44: C | AC44: 154 | AD44: 770 | AF44: 0 | AG44: ABEDERRAHIM
B45: F37 | F45: 30 | G45: C | H45: 2800 | I45: 84000 | J45: D | K45: 0 | M45: D | N45: 0 | P45: C | Q45: 1260 | R45: 37800 | S45: D | T45: 0 | V45: D | W45: 0 | Y45: D | Z45: 0 | AB45: C | AC45: 130 | AD45: 3900 | AF45: 3900 | AG45: OUARZAZATE
B46: F38 | F46: 8 | G46: C | H46: 3400 | I46: 27200 | J46: D | K46: 0 | M46: D | N46: 0 | P46: C | Q46: 0 | R46: 0 | S46: D | T46: 0 | V46: D | W46: 0 | Y46: D | Z46: 0 | AB46: C | AC46: 197 | AD46: 1576 | AF46: 0 | AG46: ABEDERRAHIM
B47: F39 | F47: 14 | G47: C | H47: 4300 | I47: 60200 | J47: D | K47: 0 | M47: C | N47: 0 | O47: 0 | P47: C | Q47: 350 | R47: 4900 | S47: D | T47: 0 | V47: D | W47: 150 | Y47: C | Z47: 214.5 | AA47: 3003 | AB47: C | AC47: 205 | AD47: 2870 | AF47: 0 | AG47: MOHAMMED
B48: F40 | F48: 6 | G48: C | H48: 2570 | I48: 15420 | J48: D | K48: 0 | M48: D | N48: 0 | P48: C | Q48: 0 | R48: 0 | S48: D | T48: 0 | V48: D | W48: 0 | Y48: D | Z48: 0 | AB48: C | AC48: 335 | AD48: 2010 | AF48: 0 | AG48: ABEDERRAHIM
B49: F41 | F49: 1 | G49: C | H49: 5600 | I49: 5600 | J49: C | K49: 6000 | L49: 6000 | M49: C | N49: 2400 | O49: 2400 | P49: C | Q49: 327.84 | R49: 327.84 | S49: C | T49: 2972 | U49: 2972 | V49: D | W49: 0 | Y49: D | Z49: 0 | AB49: C | AC49: 4836 | AD49: 4836 | AF49: 327.84 | AG49: ABEDERRAHIM
B50: F42 | F50: 2 | G50: C | H50: 6580 | I50: 13160 | J50: C | K50: 11200 | L50: 22400 | M50: C | N50: 4950 | O50: 9900 | P50: C | Q50: 1424.4 | R50: 2848.8 | S50: C | T50: 6024 | U50: 12048 | V50: D | W50: 0 | Y50: D | Z50: 0 | AB50: C | AC50: 9066 | AD50: 18132 | AF50: 2848.8 | AG50: ABEDERRAHIM
B51: F43 | F51: 4 | G51: C | H51: =8500*6 -> 51000 | I51: 204000 | J51: C | K51: 20400 | L51: 81600 | M51: C | N51: 10500 | O51: 42000 | P51: C | Q51: 5906.4 | R51: 23625.6 | S51: C | T51: 12404 | U51: 49616 | V51: D | W51: 0 | Y51: D | Z51: 0 | AB51: C | AC51: 18738 | AD51: 74952 | AF51: 23625.6 | AG51: ABEDERRAHIM
B52: F44 | F52: 8 | G52: C | H52: =8500*6 -> 51000 | I52: 408000 | J52: C | K52: 28900 | L52: 231200 | M52: C | N52: 16650 | O52: 133200 | P52: C | Q52: 17545.92 | R52: 140367.36 | S52: C | T52: 17621 | U52: 140968 | V52: D | W52: 0 | Y52: D | Z52: 0 | AB52: C | AC52: 26802 | AD52: 214416 | AF52: 133200 | AG52: MOHAMMED
B53: F45 | F53: 1 | G53: C | H53: =8500*6 -> 51000 | I53: 51000 | J53: C | K53: 52000 | L53: 52000 | M53: D | N53: 0 | P53: C | Q53: 3856.14 | R53: 3856.14 | S53: C | T53: 32402 | U53: 32402 | V53: D | W53: 0 | Y53: D | Z53: 0 | AB53: C | AC53: 47124 | AD53: 47124 | AF53: 3856.14 | AG53: ABEDERRAHIM
B54: F46 | F54: 4 | G54: C | H54: 0 | I54: 0 | J54: C | K54: 920 | L54: 3680 | M54: C | N54: 350 | O54: 1400 | P54: C | Q54: 67.84 | R54: 271.36 | S54: C | T54: 284.45 | U54: 1137.8 | V54: D | W54: 0 | Y54: D | Z54: 0 | AB54: C | AC54: 433 | AD54: 1732 | AF54: 0 | AG54: HICHAM
B55: F47 | F55: 6 | G55: C | H55: 0 | I55: 0 | J55: C | K55: 2450 | L55: 14700 | M55: C | N55: 750 | O55: 4500 | P55: C | Q55: 337.5 | R55: 2025 | S55: C | T55: 793 | U55: 4758 | V55: D | W55: 0 | Y55: D | Z55: 0 | AB55: C | AC55: 1377 | AD55: 8262 | AF55: 0 | AG55: HICHAM
B56: F48 | F56: 8 | G56: C | H56: 0 | I56: 0 | J56: C | K56: 4200 | L56: 33600 | M56: C | N56: 1600 | O56: 12800 | P56: C | Q56: 904.32 | R56: 7234.56 | S56: C | T56: 1449 | U56: 11592 | V56: D | W56: 0 | Y56: D | Z56: 0 | AB56: C | AC56: 2242 | AD56: 17936 | AF56: 0 | AG56: HICHAM
B57: F49 | F57: 4 | G57: C | H57: 0 | I57: 0 | J57: C | K57: 3800 | L57: 15200 | M57: C | N57: 1208 | O57: 4832 | P57: C | Q57: 452.16 | R57: 1808.64 | S57: C | T57: 2029 | U57: 8116 | V57: D | W57: 0 | Y57: D | Z57: 0 | AB57: C | AC57: 1731 | AD57: 6924 | AF57: 0 | AG57: HICHAM
B58: F50 | F58: 6 | G58: C | H58: 0 | I58: 0 | J58: C | K58: 6600 | L58: 39600 | M58: C | N58: 1740 | O58: 10440 | P58: C | Q58: 859.14 | R58: 5154.84 | S58: D | T58: 0 | V58: D | W58: 0 | Y58: D | Z58: 0 | AB58: C | AC58: 1731 | AD58: 10386 | AF58: 0 | AG58: HICHAM
B59: F51 | F59: 2 | G59: C | H59: 0 | I59: 0 | J59: C | K59: 3400 | L59: 6800 | M59: C | N59: 1351 | O59: 2702 | P59: C | Q59: 192.2 | R59: 384.4 | S59: D | T59: 0 | V59: D | W59: 0 | Y59: D | Z59: 0 | AB59: C | AC59: 1809 | AD59: 3618 | AF59: 0 | AG59: HICHAM
B60: F52 | F60: 8 | G60: C | H60: 0 | I60: 0 | J60: D | K60: 0 | M60: C | N60: 745 | O60: 5960 | P60: C | Q60: 362 | R60: 2896 | S60: C | T60: 482 | U60: 3856 | V60: D | W60: 0 | Y60: D | Z60: 0 | AB60: C | AC60: 1023 | AD60: 8184 | AF60: 0 | AG60: HICHAM
B61: F53 | F61: 8 | G61: C | H61: 0 | I61: 0 | J61: D | K61: 0 | M61: C | N61: 792 | O61: 6336 | P61: C | Q61: 467.2 | R61: 3737.6 | S61: D | T61: 0 | V61: D | W61: 0 | Y61: D | Z61: 0 | AB61: C | AC61: 1102 | AD61: 8816 | AF61: 0 | AG61: HICHAM
B62: F54 | F62: 2 | G62: C | H62: 0 | I62: 0 | J62: D | K62: 0 | M62: C | N62: 1450 | O62: 2900 | P62: C | Q62: 79.2 | R62: 158.4 | S62: C | T62: 409 | U62: 818 | V62: D | W62: 0 | Y62: D | Z62: 0 | AB62: C | AC62: 787 | AD62: 1574 | AF62: 0 | AG62: HICHAM
B63: F55 | F63: 2 | G63: C | H63: 0 | I63: 0 | J63: D | K63: 0 | M63: C | N63: 488 | O63: 976 | P63: C | Q63: 90.6 | R63: 181.2 | S63: C | T63: 479 | U63: 958 | V63: D | W63: 0 | Y63: D | Z63: 0 | AB63: C | AC63: 866 | AD63: 1732 | AF63: 0 | AG63: HICHAM
B64: F56 | F64: 12 | G64: C | H64: 0 | I64: 0 | J64: D | K64: 0 | M64: D | N64: 0 | P64: C | Q64: 0 | R64: 0 | S64: D | T64: 0 | V64: D | W64: 0 | Y64: D | Z64: 0 | AB64: C | AC64: 113 | AD64: 1356 | AF64: 0 | AG64: HICHAM;ABEDERRAHIM
B65: F57 | F65: 10 | G65: C | H65: 0 | I65: 0 | J65: D | K65: 0 | M65: D | N65: 0 | P65: C | Q65: 0 | R65: 0 | S65: D | T65: 0 | V65: D | W65: 0 | Y65: D | Z65: 0 | AB65: C | AC65: 119 | AD65: 1190 | AF65: 0 | AG65: HICHAM;ABEDERRAHIM
B66: F58 | F66: 10 | G66: C | H66: 0 | I66: 0 | J66: D | K66: 0 | M66: D | N66: 0 | P66: C | Q66: 0 | R66: 0 | S66: D | T66: 0 | V66: D | W66: 0 | Y66: D | Z66: 0 | AB66: C | AC66: 166 | AD66: 1660 | AF66: 0 | AG66: HICHAM;ABEDERRAHIM
B67: F59 | F67: 12 | G67: C | H67: 0 | I67: 0 | J67: D | K67: 0 | M67: D | N67: 0 | P67: C | Q67: 0 | R67: 0 | S67: D | T67: 0 | V67: D | W67: 0 | Y67: D | Z67: 0 | AB67: C | AC67: 215 | AD67: 2580 | AF67: 0 | AG67: HICHAM;ABEDERRAHIM
B68: F60 | F68: 5 | G68: C | H68: 0 | I68: 0 | J68: D | K68: 0 | M68: D | N68: 0 | P68: C | Q68: 0 | R68: 0 | S68: D | T68: 0 | V68: D | W68: 0 | Y68: D | Z68: 0 | AB68: C | AC68: 327 | AD68: 1635 | AF68: 0 | AG68: HICHAM;ABEDERRAHIM
B69: F61 | F69: 12 | G69: C | H69: 0 | I69: 0 | J69: D | K69: 0 | M69: D | N69: 172 | P69: C | Q69: 84 | R69: 1008 | S69: C | T69: 349 | U69: 4188 | V69: D | W69: 0 | Y69: D | Z69: 0 | AB69: C | AC69: 244 | AD69: 2928 | AF69: 0 | AG69: HICHAM
B70: F62 | F70: 10 | G70: C | H70: 0 | I70: 0 | J70: D | K70: 0 | M70: C | N70: 320 | O70: 3200 | P70: C | Q70: 400 | R70: 4000 | S70: C | T70: 746 | U70: 7460 | V70: D | W70: 0 | Y70: D | Z70: 0 | AB70: C | AC70: 453 | AD70: 4530 | AF70: 0 | AG70: HICHAM
B71: F63 | F71: 10 | G71: C | H71: 0 | I71: 0 | J71: D | K71: 0 | M71: N.C, épaisseur 5 mm AU LIEU DE 6,05 MM | N71: 540 | P71: C | Q71: 791.3 | R71: 7913 | S71: C | T71: 1078 | U71: 10780 | V71: D | W71: 0 | Y71: D | Z71: 0 | AB71: C | AC71: 1023 | AD71: 10230 | AF71: 0 | AG71: HICHAM
B72: F64 | F72: 12 | G72: C | H72: 0 | I72: 0 | J72: D | K72: 0 | M72: N.C, collet épisseur de 5 MM au lieu de 6,2 MM | N72: 650 | P72: C | Q72: 723.48 | R72: 8681.76 | S72: C | T72: 1327 | U72: 15924 | V72: D | W72: 0 | Y72: D | Z72: 0 | AB72: C | AC72: 1337 | AD72: 16044 | AF72: 0 | AG72: HICHAM
B73: F65 | F73: 5 | G73: C | H73: 0 | I73: 0 | J73: D | K73: 0 | M73: N.C, collet épisseur de 5 MM au lieu de 7,11 MM | N73: 1400 | P73: C | Q73: 565.2 | R73: 2826 | S73: C | T73: 2173 | U73: 10865 | V73: D | W73: 0 | Y73: D | Z73: 0 | AB73: C | AC73: 2399 | AD73: 11995 | AF73: 0 | AG73: HICHAM
B74: F66 | F74: 36 | G74: C | H74: 138 | I74: =IF(G74="c",F74*H74,"") -> 4968 | J74: D | K74: 0 | L74: =IF(J74="c",F74*K74,"") ->  | M74: C | N74: 91 | O74: =IF(M74="c",F74*N74,"") -> 3276 | P74: C | Q74: 219.6 | R74: =IF(P74="c",F74*Q74,"") -> 7905.6 | S74: D | T74: 0 | U74: =IF(S74="c",F74*T74,"") ->  | V74: D | W74: 0 | X74: =IF(V74="c",F74*W74,"") ->  | Y74: D | Z74: 0 | AA74: =IF(Y74="c",F74*Z74,"") ->  | AB74: C | AC74: 187 | AD74: =IF(AB74="c",F74*AC74,"") -> 6732 | AF74: =MIN(I74,L74,O74,R74,U74,X74,AA74,AD74) -> 3276 | AG74: MOHAMMED
B75: F67 | F75: 24 | G75: C | H75: 224.25 | I75: =IF(G75="c",F75*H75,"") -> 5382 | J75: D | K75: 0 | L75: =IF(J75="c",F75*K75,"") ->  | M75: C | N75: 103 | O75: =IF(M75="c",F75*N75,"") -> 2472 | P75: C | Q75: 225.6 | R75: =IF(P75="c",F75*Q75,"") -> 5414.4 | S75: D | T75: 0 | U75: =IF(S75="c",F75*T75,"") ->  | V75: D | W75: 0 | X75: =IF(V75="c",F75*W75,"") ->  | Y75: D | Z75: 0 | AA75: =IF(Y75="c",F75*Z75,"") ->  | AB75: C | AC75: 248 | AD75: =IF(AB75="c",F75*AC75,"") -> 5952 | AF75: =MIN(I75,L75,O75,R75,U75,X75,AA75,AD75) -> 2472 | AG75: MOHAMMED
B76: F68 | F76: 24 | G76: C | H76: 290.5 | I76: =IF(G76="c",F76*H76,"") -> 6972 | J76: D | K76: 0 | L76: =IF(J76="c",F76*K76,"") ->  | M76: C | N76: 141 | O76: =IF(M76="c",F76*N76,"") -> 3384 | P76: C | Q76: 264 | R76: =IF(P76="c",F76*Q76,"") -> 6336 | S76: D | T76: 0 | U76: =IF(S76="c",F76*T76,"") ->  | V76: D | W76: 0 | X76: =IF(V76="c",F76*W76,"") ->  | Y76: D | Z76: 0 | AA76: =IF(Y76="c",F76*Z76,"") ->  | AB76: C | AC76: 366 | AD76: =IF(AB76="c",F76*AC76,"") -> 8784 | AF76: =MIN(I76,L76,O76,R76,U76,X76,AA76,AD76) -> 3384 | AG76: MOHAMMED
B77: F69 | F77: 12 | G77: C | H77: 11200 | I77: =IF(G77="c",F77*H77,"") -> 134400 | J77: D | K77: 0 | L77: =IF(J77="c",F77*K77,"") ->  | M77: C | N77: 25 | O77: =IF(M77="c",F77*N77,"") -> 300 | P77: C | Q77: 46.2 | R77: =IF(P77="c",F77*Q77,"") -> 554.4 | S77: D | T77: 0 | U77: =IF(S77="c",F77*T77,"") ->  | V77: C | W77: 38 | X77: =IF(V77="c",F77*W77,"") ->  | Y77: D | Z77: 0 | AA77: =IF(Y77="c",F77*Z77,"") ->  | AB77: C | AC77: 187 | AD77: =IF(AB77="c",F77*AC77,"") -> 2244 | AF77: =MIN(I77,L77,O77,R77,U77,X77,AA77,AD77) -> 300 | AG77: MOHAMMED
B78: F70 | F78: 20 | G78: C | H78: 3500 | I78: =IF(G78="c",F78*H78,"") -> 70000 | J78: D | K78: 0 | L78: =IF(J78="c",F78*K78,"") ->  | M78: C | N78: 1635 | O78: =IF(M78="c",F78*N78,"") -> 32700 | P78: C | Q78: 249 | R78: =IF(P78="c",F78*Q78,"") -> 4980 | S78: D | T78: 0 | U78: =IF(S78="c",F78*T78,"") ->  | V78: D | W78: 0 | X78: =IF(V78="c",F78*W78,"") ->  | Y78: D | Z78: 0 | AA78: =IF(Y78="c",F78*Z78,"") ->  | AB78: D | AC78: 0 | AD78: =IF(AB78="c",F78*AC78,"") ->  | AF78: =MIN(I78,L78,O78,R78,U78,X78,AA78,AD78) -> 4980 | AG78: ABEDERRAHIM
D80: Montant | E80: Nbre
D81: =+I20 -> 780 | E81: 1
D82: =O19+O22+O23+O24+O25+O29+O30+O49+O50+O70+O75+O77+O78+O61+O59+O55+O28+O27+O17+O12+O74+O57+O51+O52 -> 281044 | E82: 25
D83: =U73+U72+U63+U62+U60+U56+U54+U21+U10+U53 -> 88992.8 | E83: 10
D84: =X14+X26+X33+X34+X36 ->  | E84: 5
D85: =AA38+AA35 -> 782.21 | E85: 2
D86: =AD68+AD67+AD66+AD65+AD64+AD48+AD47+AD46+AD45+AD44+AD43+AD42+AD41+AD40+AD39+AD37+AD32+AD31+AD15+AD13+AD69+AD71+AD58+AD16+AD9 -> 84100 | E86: 25
D87: =L11+L18 -> 2232 | E87: 2
D88: =SUM(D81:D86) ->  | E88: =SUM(E81:E87) -> 70
